bitfinex-derivatives/quotes_ETHF0:USTF0_20210110
["timestamp","ask_amount","ask_price","bid_price","bid_amount"]
[1610265838560,35.6527,1335.3,1331.6,1.584]
[1610265838763,30.0,1335.0,1331.7,52.3801]
[1610265839961,4.00959,1332.0,1331.9,4.00959]
[1610265844270,5.686,1334.0,1331.9,4.00959]
[1610265844671,5.686,1334.0,1332.0,30.0]
[1610265844870,1.5556,1334.1,1332.0,30.0]
[1610265845872,4.00959,1332.7,1332.5,4.00959]
[1610265846072,4.00959,1332.7,1332.6,30.0]
[1610265846471,4.00959,1332.7,1332.6,32.4515]
[1610265846972,4.00959,1332.7,1332.6,2.4515]
[1610265851380,4.00959,1332.7,1331.9,1.5423]
[1610265851579,4.00959,1332.7,1332.6,1.9089]
[1610265856684,4.00959,1332.7,1331.3,30.0]
[1610265856884,1.5948,1333.7,1332.7,30.0]
[1610265857087,1.5556,1334.1,1332.7,30.0]
[1610265857284,11.8144,1335.0,1332.7,30.0]
[1610265857885,11.8144,1335.0,1332.6,2.172]
[1610265858085,11.8144,1335.0,1333.1,4.00959]
[1610265858485,11.8144,1335.0,1333.1,2.4692]
[1610265859987,4.00959,1333.6,1333.5,4.00959]
[1610265861286,1.7446,1334.7,1333.5,36.42189]
[1610265861487,48.464,1335.5,1333.5,36.42189]
[1610265861886,11.636,1336.9,1333.5,36.42189]
[1610265862086,4.00959,1334.4,1334.1,4.00959]
[1610265863387,4.00959,1334.4,1334.1,34.00959]
[1610265863789,2.1699,1335.5,1334.1,34.00959]
[1610265863990,4.00959,1334.9,1334.6,4.00959]
[1610265865388,2.5102,1336.0,1334.6,34.00959]
[1610265865887,2.5102,1336.0,1334.6,35.99519]
[1610265866088,4.00959,1335.1,1334.8,4.00959]
[1610265866288,4.00959,1335.1,1334.6,31.9856]
[1610265866488,4.00959,1335.1,1334.6,1.9856]
[1610265868090,4.00959,1334.7,1334.6,1.9856]
[1610265868291,4.00959,1334.7,1334.1,2.414]
[1610265868491,4.00959,1334.7,1334.1,32.414]
[1610265868691,4.00959,1334.7,1334.2,60.57]
[1610265869893,1.33879,1334.7,1334.2,60.57]
[1610265870095,1.33879,1334.7,1334.3,4.00959]
[1610265870295,1.7659,1335.3,1334.7,0.99041]
[1610265871194,5.8511,1335.9,1334.7,0.99041]
[1610265871996,4.00959,1334.9,1334.7,0.99041]
[1610265873703,5.8511,1335.9,1334.7,0.99041]
[1610265873904,2.5102,1336.0,1334.7,0.99041]
[1610265874103,4.00959,1335.1,1334.9,4.00959]
[1610265874704,1.9811,1336.0,1334.9,4.00959]
[1610265874906,1.9811,1336.0,1334.9,6.00519]
[1610265876106,1.9811,1336.0,1335.4,4.00959]
[1610265877305,1.9811,1336.0,1334.9,1.9956]
[1610265877707,18.9811,1336.0,1334.9,1.9956]
[1610265878107,4.00959,1335.6,1335.4,4.00959]
[1610265879209,18.9811,1336.0,1335.4,4.00959]
[1610265880210,18.9811,1336.0,1335.9,4.00959]
[1610265880409,18.9811,1336.0,1335.2,2.2303]
[1610265881211,18.9811,1336.0,1334.8,58.6973]
[1610265882214,18.9811,1336.0,1335.8,4.00959]
[1610265884314,18.9811,1336.0,1334.9,2.0089]
[1610265885014,18.9811,1336.0,1335.0,59.3587]
[1610265886215,18.9811,1336.0,1335.7,4.00959]
[1610265886216,4.00959,1335.8,1335.7,4.00959]
[1610265886715,4.00959,1335.8,1335.0,59.3587]
[1610265888119,4.00959,1335.1,1335.0,63.36829]
[1610265888524,4.00959,1335.1,1335.0,59.3587]
[1610265890222,4.00959,1335.1,1335.0,63.36829]
[1610265891822,17.0,1336.0,1335.0,63.36829]
[1610265892023,2.1741,1336.0,1335.0,4.00959]
[1610265892223,2.1741,1336.0,1335.4,45.0147]
[1610265892424,2.1741,1336.0,1335.5,30.0]
[1610265894325,2.1741,1336.0,1335.9,34.00959]
[1610265894725,4.00959,1336.6,1335.9,34.00959]
[1610265895426,4.00959,1336.6,1335.9,4.00959]
[1610265895725,4.00959,1336.6,1335.8,45.9513]
[1610265896126,4.00959,1336.6,1336.4,3.9277687]
[1610265896327,1.9569,1336.8,1336.4,3.9277687]
[1610265896727,1.9569,1336.8,1336.7,3.49650503]
[1610265898332,5.96649,1336.8,1336.7,3.49650503]
[1610265904843,5.96649,1336.8,1336.5,3.92580222]
[1610265905644,5.96649,1336.8,1336.3,7.85847081]
[1610265906246,4.00959,1336.4,1334.6,5.23909376]
[1610265906849,4.00959,1336.4,1336.1,0.54464096]
[1610265907247,4.00959,1336.4,1334.6,5.23909376]
[1610265907644,6.17489,1336.4,1334.6,5.23909376]
[1610265908344,4.00959,1336.1,1334.6,5.23909376]
[1610265909845,5.61579,1336.1,1334.6,5.23909376]
[1610265910244,4.00959,1335.8,1334.6,5.23909376]
[1610265910545,6.52359,1335.8,1334.6,5.23909376]
[1610265915546,6.52359,1335.8,1334.7,8.26381296]
[1610265916946,6.52359,1335.8,1335.0,1.9875]
[1610265918246,4.00959,1335.4,1335.0,1.9875]
[1610265918747,4.00959,1335.4,1335.3,8.31244424]
[1610265921852,4.00959,1335.4,1335.3,11.82954436]
[1610265931259,3.01918,1335.4,1335.3,11.82954436]
[1610265940170,3.01918,1335.4,1334.9,3.95052639]
[1610265940370,4.00959,1335.0,1334.9,3.95052639]
[1610265941371,5.55829,1335.0,1334.9,3.95052639]
[1610265941574,5.55829,1335.0,1334.9,3.51265238]
[1610265963100,5.55829,1335.0,1334.5,3.95165096]
[1610265964501,4.00959,1334.6,1334.5,3.95165096]
[1610265964701,6.14269,1334.6,1334.5,3.95165096]
[1610265967004,6.14269,1334.6,1334.5,7.90997306]
[1610265985438,6.14269,1334.6,1334.5,3.9583221]
[1610265988942,6.14269,1334.6,1334.5,7.48447181]
[1610266007963,6.14269,1334.6,1334.5,3.52614971]
[1610266010364,6.14269,1334.6,1334.5,7.05099463]
[1610266016072,6.14269,1334.6,1334.3,54.7114081]
[1610266016471,6.14269,1334.6,1334.3,3.5281081]
[1610266016671,4.00959,1334.4,1334.3,3.5281081]
[1610266016872,4.00959,1334.4,1333.9,3.9654913]
[1610266018571,4.00959,1334.4,1333.7,3.96833821]
[1610266018772,4.00959,1333.8,1333.7,3.96833821]
[1610266019976,5.94519,1333.8,1333.7,3.96833821]
[1610266021275,5.94519,1333.8,1333.6,0.41545983]
[1610266024479,35.94519,1333.8,1333.3,54.45493483]
[1610266024680,4.00959,1333.4,1333.3,54.45493483]
[1610266025784,34.00959,1333.4,1333.3,54.45493483]
[1610266025986,8.4019,1333.3,1333.1,4.40717597]
[1610266026186,38.4019,1333.3,1333.1,4.40717597]
[1610266026787,4.00959,1333.2,1333.1,4.40717597]
[1610266027188,4.00959,1333.2,1331.6,51.2431]
[1610266028489,6.38959,1333.2,1331.6,51.2431]
[1610266028689,4.00959,1333.0,1331.6,51.2431]
[1610266030690,4.00959,1331.7,1331.6,51.2431]
[1610266035293,4.00959,1331.7,1330.0,4.00959]
[1610266036697,2.0985,1332.4,1330.3,4.00959]
[1610266036895,2.0985,1332.4,1330.3,6.51989]
[1610266037496,2.0985,1332.4,1330.3,2.5103]
[1610266038297,2.0985,1332.4,1330.3,32.5103]
[1610266038697,4.00959,1330.8,1330.7,4.00959]
[1610266039698,1.5185,1332.7,1330.7,4.00959]
[1610266039905,1.5185,1332.7,1330.7,5.59419]
[1610266040700,1.5185,1332.7,1331.1,4.00959]
[1610266040901,2.38,1333.2,1331.1,6.32059]
[1610266041102,5.6277,1335.6,1331.1,6.32059]
[1610266041302,41.3871,1335.6,1331.1,36.32059]
[1610266042203,11.3871,1335.6,1331.1,36.32059]
[1610266042804,30.0,1335.5,1331.1,2.311]
[1610266043104,31.5261,1335.5,1331.1,32.311]
[1610266044507,31.5261,1335.5,1331.1,2.311]
[1610266044708,31.5261,1335.5,1332.0,46.5794]
[1610266044908,31.5261,1335.5,1332.0,48.426]
[1610266046808,4.00959,1332.1,1332.0,48.426]
[1610266048710,4.00959,1332.1,1332.0,1.8466]
[1610266050012,4.00959,1332.1,1331.7,1.847]
[1610266050710,4.00959,1331.8,1331.7,1.847]
[1610266051010,4.00959,1331.8,1331.1,2.311]
[1610266051211,4.00959,1331.8,1331.0,30.0]
[1610266051411,4.00959,1331.8,1329.8,30.0]
[1610266052311,4.00959,1331.8,1329.9,30.0]
[1610266052712,4.00959,1331.0,1330.8,4.00959]
[1610266053513,4.00959,1331.0,1330.8,8.47144231]
[1610266054112,4.00959,1331.0,1330.8,4.46185231]
[1610266057717,4.00959,1331.0,1330.5,4.46820577]
[1610266058918,4.00959,1330.6,1330.4,4.46998671]
[1610266059518,2.4162,1332.1,1330.4,4.46998671]
[1610266059718,1.8753,1332.4,1330.4,6.97838671]
[1610266059918,30.0,1335.2,1330.4,6.97838671]
[1610266060120,30.0,1335.2,1330.5,30.0]
[1610266060318,6.1122,1334.4,1330.5,30.0]
[1610266060723,5.5635,1334.3,1330.5,30.0]
[1610266060924,7.6066,1334.3,1330.8,4.00959]
[1610266061125,7.6066,1334.3,1330.8,36.06719]
[1610266062226,7.6066,1334.3,1330.8,6.06719]
[1610266062830,7.6066,1334.3,1331.0,4.00959]
[1610266063429,7.6066,1334.3,1331.4,59.6781]
[1610266063832,7.6066,1334.3,1331.4,61.5295]
[1610266064830,4.00959,1331.5,1331.4,65.53909]
[1610266065033,4.00959,1331.5,1331.4,95.53909]
[1610266065631,1.5498,1332.8,1331.4,95.53909]
[1610266066833,4.00959,1331.8,1331.6,4.00959]
[1610266067035,4.00959,1331.8,1331.7,30.0]
[1610266067235,4.00959,1331.8,1331.7,32.2211]
[1610266068635,1.5498,1332.8,1331.7,32.2211]
[1610266068837,4.00959,1332.3,1332.1,4.00959]
[1610266069036,4.00959,1332.3,1332.1,34.00959]
[1610266070236,4.00959,1332.3,1332.1,4.00959]
[1610266070637,4.00959,1332.3,1331.9,30.0]
[1610266070939,4.00959,1332.0,1331.9,30.0]
[1610266071541,4.00959,1332.0,1331.8,35.0]
[1610266072940,4.00959,1332.0,1331.8,5.0]
[1610266073542,4.00959,1332.0,1331.8,35.0]
[1610266074541,1.8717,1333.1,1331.8,35.0]
[1610266074941,4.00959,1332.3,1332.1,4.00959]
[1610266075141,4.00959,1332.3,1332.1,34.00959]
[1610266076948,1.5939,1333.6,1332.1,34.00959]
[1610266077153,1.5939,1333.6,1332.1,35.78209]
[1610266077351,11.6759,1335.3,1333.3,3.5620419]
[1610266077750,11.6759,1335.3,1334.0,3.114714]
[1610266077948,5.7821,1335.3,1334.0,3.114714]
[1610266078150,1.5226992,1336.0,1334.0,3.114714]
[1610266078349,1.5226992,1336.0,1334.1,3.11356353]
[1610266078753,1.5226992,1336.0,1334.2,3.1119698]
[1610266078949,4.00959,1334.3,1334.2,3.1119698]
[1610266079150,5.71369,1334.3,1334.2,3.1119698]
[1610266081754,5.71369,1334.3,1334.0,52.2801]
[1610266082355,5.71369,1334.3,1333.7,48.8903]
[1610266082955,4.00959,1333.8,1333.7,48.8903]
[1610266083356,5.76379,1333.8,1333.7,48.8903]
[1610266091668,5.76379,1333.8,1333.4,3.55884093]
[1610266092969,4.00959,1333.5,1333.4,3.55884093]
[1610266093469,5.52709,1333.5,1333.4,3.55884093]
[1610266097675,5.52709,1333.5,1333.2,43.8079]
[1610266098073,5.52709,1333.5,1333.3,3.13530891]
[1610266098672,5.52709,1333.5,1333.4,3.13513998]
[1610266100275,5.52709,1333.5,1333.4,6.27365925]
[1610266100675,5.52709,1333.5,1333.4,3.13851927]
[1610266101876,5.52709,1333.5,1333.4,5.83329547]
[1610266102077,5.52709,1333.5,1333.0,3.14390557]
[1610266103178,4.00959,1333.1,1333.0,3.14390557]
[1610266103377,5.61299,1333.1,1333.0,3.14390557]
[1610266105680,35.61299,1333.1,1333.0,3.14390557]
[1610266111384,30.61299,1333.1,1333.0,3.14390557]
[1610266113189,34.62258,1333.1,1333.0,3.14390557]
[1610266114994,4.62258,1333.1,1333.0,3.14390557]
[1610266117303,34.62258,1333.1,1333.0,3.14390557]
[1610266117502,29.62258,1333.1,1333.0,3.14390557]
[1610266117703,32.00518,1333.1,1333.0,3.14390557]
[1610266119105,36.01477,1333.1,1333.0,3.14390557]
[1610266119509,36.01477,1333.1,1332.2,4.44289742]
[1610266120108,1.797,1332.5,1332.2,4.44289742]
[1610266121207,4.00959,1332.3,1332.2,4.44289742]
[1610266137128,33.63217,1332.3,1332.2,4.44289742]
[1610266138330,4.00959,1332.3,1332.2,4.44289742]
[1610266141234,33.63217,1332.3,1332.2,4.44289742]
[1610266141838,4.00959,1332.3,1332.2,4.44289742]
[1610266150824,1.797,1332.5,1332.3,0.99041]
[1610266151059,2.3826,1333.1,1332.3,0.99041]
[1610266151065,1.5175,1333.5,1332.3,0.99041]
[1610266151071,30.0,1333.9,1332.3,0.99041]
[1610266151075,4.00959,1332.4,1332.3,0.99041]
[1610266151084,5.68739,1332.4,1332.3,0.99041]
[1610266159966,5.68739,1332.4,1331.8,42.2502]
[1610266161365,4.00959,1331.9,1331.8,42.2502]
[1610266161665,6.47399,1331.9,1331.8,42.2502]
[1610266166870,6.47399,1331.9,1330.6,1.8553]
[1610266167473,4.00959,1330.7,1330.6,1.8553]
[1610266167872,4.00959,1330.7,1329.9,1.6254]
[1610266168076,4.00959,1330.7,1324.9,5.902]
[1610266168274,4.00959,1330.7,1325.0,30.0]
[1610266168473,4.00959,1330.7,1325.0,72.0698]
[1610266169375,4.00959,1329.5,1329.3,4.00959]
[1610266170377,4.00959,1329.5,1325.0,72.0698]
[1610266171580,4.00959,1329.1,1329.0,4.00959]
[1610266173285,2.0561,1330.8,1329.0,4.00959]
[1610266173485,4.00959,1329.4,1329.3,4.00959]
[1610266174786,2.0561,1330.8,1329.3,4.00959]
[1610266175186,2.0561,1330.8,1329.3,5.81359]
[1610266175588,4.00959,1329.6,1329.3,5.81359]
[1610266176186,2.0561,1330.8,1329.3,5.81359]
[1610266176386,1.8837,1331.1,1329.4,30.0]
[1610266176586,2.4644,1331.9,1329.4,30.0]
[1610266176986,12.0627,1333.6,1329.4,30.0]
[1610266177388,4.00959,1330.0,1329.9,4.00959]
[1610266178587,4.00959,1330.0,1329.3,1.804]
[1610266179489,1.8183,1331.0,1329.5,4.00959]
[1610266180190,12.0627,1333.6,1329.5,34.00959]
[1610266180588,12.0627,1333.6,1331.0,0.3729]
[1610266181090,9.0627,1333.6,1331.0,1.9999]
[1610266181490,4.00959,1331.1,1331.0,1.9999]
[1610266202425,6.47679,1331.1,1331.0,1.9999]
[1610266213930,6.47679,1331.1,1331.0,55.8871]
[1610266218136,2.4672,1331.1,1331.0,55.8871]
[1610266218835,1.8189,1331.5,1331.0,55.8871]
[1610266219035,5.8111,1333.0,1331.0,55.8871]
[1610266219636,4.00959,1331.1,1331.0,55.8871]
[1610266223239,4.00959,1331.1,1331.0,1.9999]
[1610266228746,4.00959,1331.1,1331.0,48.2904]
[1610266229845,4.00959,1331.1,1331.0,78.2904]
[1610266230546,1.6057,1332.0,1331.0,78.2904]
[1610266230946,1.6057,1332.0,1331.0,46.2905]
[1610266231546,1.6057,1332.0,1331.1,1.7729]
[1610266231745,1.6057,1332.0,1331.5,4.00959]
[1610266232648,1.6057,1332.0,1331.9,7.7548]
[1610266233049,49.8152,1333.9,1331.9,7.7548]
[1610266233651,49.8152,1333.9,1332.2,4.00959]
[1610266235653,49.8152,1333.9,1332.5,4.00959]
[1610266237754,4.00959,1332.7,1332.5,4.00959]
[1610266238354,4.00959,1332.7,1331.9,7.7548]
[1610266239057,4.00959,1332.7,1331.9,37.7548]
[1610266239756,4.00959,1332.7,1332.3,4.00959]
[1610266241858,4.00959,1332.5,1332.3,4.00959]
[1610266256473,4.00959,1332.5,1332.3,34.00959]
[1610266262177,4.00959,1332.5,1332.3,4.00959]
[1610266267885,4.00959,1332.5,1332.3,34.00959]
[1610266272290,4.00959,1332.5,1332.3,4.00959]
[1610266272491,4.00959,1332.5,1332.3,34.00959]
[1610266275499,4.00959,1332.5,1332.3,4.00959]
[1610266278303,5.49449,1332.5,1332.4,30.0]
[1610266280205,5.49449,1332.5,1332.3,4.00959]
[1610266280405,5.49449,1332.5,1331.8,1.6041]
[1610266280605,5.49449,1332.5,1331.6,30.0]
[1610266281206,5.49449,1332.5,1331.5,2.2065]
[1610266281605,5.49449,1332.5,1330.9,31.6057]
[1610266282006,4.00959,1331.2,1330.9,35.61529]
[1610266283209,5.50169,1331.2,1330.9,35.61529]
[1610266283908,5.50169,1331.2,1331.1,36.00949]
[1610266284110,4.00959,1331.2,1331.1,36.00949]
[1610266285011,4.00959,1331.2,1331.1,6.00949]
[1610266285212,4.00959,1331.2,1331.1,36.00949]
[1610266286014,4.00959,1331.2,1331.1,6.00949]
[1610266286414,5.51409,1331.2,1331.1,6.00949]
[1610266286813,5.51409,1331.2,1331.1,1.9999]
[1610266287815,4.00959,1331.2,1331.1,1.9999]
[1610266290820,4.00959,1331.2,1331.1,0.5999]
[1610266291019,4.00959,1331.2,1330.9,1.6057]
[1610266291219,4.00959,1331.2,1330.8,132.6251]
[1610266291619,2.00969,1331.2,1330.8,132.6251]
[1610266292019,4.00959,1330.9,1330.8,132.6251]
[1610266297926,4.00959,1330.9,1328.1,4.00959]
[1610266298527,6.0494,1330.8,1328.1,4.00959]
[1610266298728,2.4792,1330.8,1328.1,4.00959]
[1610266299129,8.2653,1330.8,1328.1,34.00959]
[1610266299328,2.4792,1330.8,1328.1,34.00959]
[1610266299829,2.4792,1330.8,1328.1,37.41459]
[1610266300030,2.4792,1330.8,1329.8,4.00959]
[1610266300630,2.4792,1330.8,1329.8,6.00359]
[1610266300833,0.3128,1330.8,1329.8,6.00359]
[1610266301029,0.2128,1330.8,1329.8,6.00359]
[1610266301231,1.8821,1331.1,1329.8,6.00359]
[1610266301431,1.7117,1331.4,1330.8,2.7336]
[1610266301630,1.657,1331.7,1330.8,2.7336]
[1610266301830,30.0,1334.5,1330.8,2.7336]
[1610266302030,4.00959,1330.9,1330.8,2.7336]
[1610266303432,1.5798,1331.6,1330.8,2.7336]
[1610266303630,2.1277,1332.3,1330.8,2.7336]
[1610266303631,2.1277,1332.3,1330.8,4.733]
[1610266304032,2.1277,1332.3,1331.6,4.00959]
[1610266304233,2.1277,1332.3,1331.6,6.43409]
[1610266304433,30.0,1335.2,1331.6,6.43409]
[1610266306135,4.00959,1332.1,1331.9,4.00959]
[1610266307735,4.00959,1332.1,1332.0,48.9872]
[1610266317151,4.00959,1332.1,1331.2,45.0069]
[1610266317352,4.00959,1332.1,1331.2,2.0728]
[1610266318152,4.00959,1331.3,1331.2,2.0728]
[1610266319151,1.6995,1332.3,1331.2,2.0728]
[1610266320053,4.00959,1331.5,1331.3,4.00959]
[1610266320653,1.6995,1332.3,1331.3,4.00959]
[1610266320853,2.285,1333.0,1331.3,4.00959]
[1610266321055,5.6895,1334.4,1331.3,4.00959]
[1610266322157,5.6895,1334.4,1331.8,4.00959]
[1610266322558,5.6895,1334.4,1331.6,2.2925]
[1610266322959,7.8654,1334.4,1331.6,2.2925]
[1610266324059,4.00959,1331.9,1331.7,4.00959]
[1610266328062,4.00959,1332.1,1331.7,4.00959]
[1610266330165,4.00959,1332.1,1332.0,4.00959]
[1610266332166,4.00959,1332.1,1331.6,2.2925]
[1610266332467,4.00959,1332.1,1331.3,30.0]
[1610266334172,4.00959,1332.1,1332.0,4.00959]
[1610266334769,4.00959,1332.1,1331.6,2.3741]
[1610266336172,2.4612,1332.7,1331.8,4.00959]
[1610266336571,37.8654,1334.4,1331.6,2.3741]
[1610266337273,7.8654,1334.4,1331.6,2.3741]
[1610266337473,37.8654,1334.4,1331.6,2.3741]
[1610266338173,4.00959,1331.7,1331.6,2.3741]
[1610266339474,4.00959,1331.7,1331.5,4.00959]
[1610266340580,2.157,1332.5,1331.5,4.00959]
[1610266340781,2.157,1332.5,1331.5,6.45519]
[1610266342282,4.00959,1332.0,1331.9,4.00959]
[1610266344284,2.157,1332.5,1331.9,4.00959]
[1610266344285,4.00959,1332.2,1331.9,4.00959]
[1610266346188,4.00959,1332.2,1332.1,4.00959]
[1610266348791,4.00959,1332.2,1332.1,65.76879]
[1610266351295,2.80169,1332.2,1332.1,65.76879]
[1610266351496,1.27599,1332.2,1332.1,65.76879]
[1610266359107,2.1386,1332.9,1332.1,65.76879]
[1610266360311,2.1386,1332.9,1332.5,4.00959]
[1610266360708,2.1386,1332.9,1332.1,61.7592]
[1610266361309,48.6133,1333.6,1332.1,61.7592]
[1610266362209,48.6133,1333.6,1332.4,4.00959]
[1610266362611,48.6133,1333.6,1332.1,61.7592]
[1610266363010,50.1499,1333.6,1332.1,61.7592]
[1610266363812,1.5366,1333.6,1332.6,54.1942]
[1610266364211,4.00959,1332.7,1332.6,54.1942]
[1610266369916,6.29359,1332.7,1332.6,54.1942]
[1610266373719,6.29359,1332.7,1332.4,53.2083]
[1610266374319,4.00959,1332.5,1332.4,53.2083]
[1610266378319,4.00959,1332.5,1332.4,57.21789]
[1610266378521,4.00959,1332.5,1332.4,53.2083]
[1610266378719,4.00959,1332.5,1331.8,2.1386]
[1610266379120,4.00959,1332.5,1331.5,2.4456]
[1610266379521,4.00959,1332.5,1331.0,30.0]
[1610266380122,4.00959,1332.5,1330.6,30.0]
[1610266380324,2.1811,1333.0,1332.0,4.00959]
[1610266380521,57.7477,1333.6,1332.0,4.00959]
[1610266382422,4.00959,1332.1,1332.0,4.00959]
[1610266384325,4.00959,1332.3,1332.0,4.00959]
[1610266386128,1.6585,1332.9,1332.0,4.00959]
[1610266386330,1.6585,1332.9,1332.5,4.00959]
[1610266387928,57.7477,1333.6,1332.5,4.00959]
[1610266388429,4.00959,1332.6,1332.5,4.00959]
[1610266394838,1.9941,1333.2,1332.5,4.00959]
[1610266395039,1.5366,1333.6,1332.5,4.00959]
[1610266395238,52.0217,1333.8,1332.5,4.00959]
[1610266396441,52.0217,1333.8,1332.8,4.00959]
[1610266398543,4.00959,1332.9,1332.8,4.00959]
[1610266398743,2.3105,1333.2,1332.8,4.00959]
[1610266400548,2.3105,1333.2,1333.1,4.00959]
[1610266402549,6.32009,1333.2,1333.1,4.00959]
[1610266403750,2.3105,1333.2,1333.1,4.00959]
[1610266403952,2.1759,1334.4,1333.1,4.00959]
[1610266404152,11.4065,1335.2,1333.1,4.00959]
[1610266404553,11.4065,1335.2,1333.5,4.00959]
[1610266404753,5.8955,1335.2,1333.5,4.00959]
[1610266406555,4.00959,1333.6,1333.5,4.00959]
[1610266408656,1.7592,1334.0,1333.5,4.00959]
[1610266410660,4.00959,1333.8,1333.5,4.00959]
[1610266412663,4.00959,1333.6,1333.5,4.00959]
[1610266412863,4.00959,1333.6,1333.0,1.8185]
[1610266414265,4.00959,1333.6,1332.7,1.5466]
[1610266414465,4.00959,1333.6,1332.2,1.75]
[1610266414665,4.00959,1333.1,1332.9,4.00959]
[1610266415265,1.7592,1334.0,1332.9,4.00959]
[1610266415465,35.8508,1335.6,1332.9,5.92609]
[1610266416566,4.00959,1333.3,1333.1,4.00959]
[1610266425579,2.3849,1334.0,1333.1,4.00959]
[1610266425777,35.8508,1335.6,1333.1,4.00959]
[1610266426177,5.8508,1335.6,1333.1,4.00959]
[1610266426679,5.8508,1335.6,1333.8,4.00959]
[1610266426879,36.0853,1335.7,1333.8,4.00959]
[1610266427078,6.0853,1335.7,1333.8,4.00959]
[1610266428681,4.00959,1333.9,1333.8,4.00959]
[1610266430580,2.262,1334.1,1333.8,4.00959]
[1610266430783,2.262,1334.1,1334.0,4.00959]
[1610266434185,4.00959,1334.3,1334.0,4.00959]
[1610266434686,4.00959,1334.5,1334.2,4.00959]
[1610266436587,19.0,1335.8,1334.2,4.00959]
[1610266436787,4.00959,1334.9,1334.6,4.00959]
[1610266438692,4.00959,1334.9,1334.8,4.00959]
[1610266441193,19.0,1335.8,1334.8,4.00959]
[1610266442694,4.00959,1334.9,1334.8,4.00959]
[1610266443194,4.00959,1334.9,1334.5,1.6812]
[1610266443394,4.00959,1334.9,1334.2,1.6585]
[1610266444797,4.00959,1334.6,1334.5,4.00959]
[1610266446700,4.00959,1334.6,1334.3,4.00959]
[1610266449302,4.00959,1334.6,1334.2,1.6585]
[1610266449503,4.00959,1334.6,1333.5,1.8977]
[1610266449703,4.00959,1334.6,1333.2,2.3658]
[1610266450103,4.00959,1334.6,1333.0,9.1475]
[1610266450904,1.7518,1334.8,1334.0,4.00959]
[1610266451504,1.7518,1334.8,1333.6,2.3438]
[1610266451704,1.6358,1335.1,1334.8,3.2482]
[1610266452305,1.8862,1335.4,1334.8,3.2482]
[1610266452508,19.0,1335.8,1334.8,3.2482]
[1610266452905,4.00959,1334.9,1334.8,3.2482]
[1610266453105,6.15249,1334.9,1334.8,3.2482]
[1610266471032,6.15249,1334.9,1334.5,43.8346]
[1610266471434,2.90429,1334.9,1334.5,43.8346]
[1610266473035,4.00959,1334.6,1334.5,43.8346]
[1610266473234,5.85869,1334.6,1334.5,43.8346]
[1610266477141,5.85869,1334.6,1333.4,4.00959]
[1610266477340,5.85869,1334.6,1333.0,3.405]
[1610266477542,5.85869,1334.6,1332.3,30.0]
[1610266478541,5.85869,1334.6,1332.4,30.0]
[1610266479243,1.8491,1334.6,1333.0,4.00959]
[1610266479645,2.1429,1334.9,1333.0,5.57249]
[1610266479844,30.0,1335.6,1333.0,5.57249]
[1610266481246,4.00959,1333.2,1333.0,5.57249]
[1610266483248,1.567,1333.8,1333.0,5.57249]
[1610266485248,4.00959,1333.2,1333.0,5.57249]
[1610266487352,4.00959,1333.2,1333.0,1.5629]
[1610266487554,4.00959,1333.2,1332.4,1.7042]
[1610266487953,4.00959,1333.2,1328.4,35.6125]
[1610266488153,4.00959,1333.2,1328.4,69.6075]
[1610266489052,2.0023,1333.5,1328.4,69.6075]
[1610266489254,6.01189,1333.5,1333.3,4.00959]
[1610266489453,4.00959,1333.5,1333.3,4.00959]
[1610266491757,4.00959,1333.5,1333.3,47.38819]
[1610266494562,4.00959,1333.5,1333.3,43.3786]
[1610266495763,4.00959,1333.5,1333.2,50.0824]
[1610266497265,2.1799,1334.2,1333.3,4.00959]
[1610266497464,46.4441,1334.5,1333.3,4.00959]
[1610266499266,46.4441,1334.5,1333.7,4.00959]
[1610266501269,46.4441,1334.5,1334.0,4.00959]
[1610266503269,4.00959,1334.1,1334.0,4.00959]
[1610266503670,1.65579,1334.1,1334.0,4.00959]
[1610266504471,1.577,1334.3,1334.1,0.69801]
[1610266504672,1.577,1334.3,1334.1,0.99041]
[1610266505070,46.4441,1334.5,1334.1,0.99041]
[1610266505271,4.00959,1334.2,1334.1,49.28491]
[1610266512484,5.89319,1334.2,1334.1,49.28491]
[1610266514684,5.89319,1334.2,1334.1,0.99041]
[1610266525290,5.89319,1334.2,1332.2,2.0427]
[1610266525291,5.89319,1334.2,1331.9,2.5121]
[1610266525491,1.8836,1334.2,1332.0,4.00959]
[1610266525891,30.0,1334.4,1332.0,4.00959]
[1610266526692,35.7043,1334.5,1332.0,4.00959]
[1610266527193,35.7043,1334.5,1331.9,2.5121]
[1610266527395,4.00959,1332.0,1331.9,2.5121]
[1610266528595,1.5792,1333.1,1331.9,2.5121]
[1610266529497,4.00959,1332.5,1332.4,4.00959]
[1610266529695,4.00959,1332.5,1331.9,2.5121]
[1610266530296,4.00959,1332.5,1328.7,30.0]
[1610266531496,2.0387,1332.8,1328.7,30.0]
[1610266531897,2.0387,1332.8,1328.7,32.3861]
[1610266533497,2.0387,1332.8,1331.6,4.00959]
[1610266533698,2.0387,1332.8,1331.6,6.47799]
[1610266535098,1.5792,1333.1,1331.6,6.47799]
[1610266535300,35.7043,1334.5,1331.6,6.47799]
[1610266535499,4.00959,1331.7,1331.6,6.47799]
[1610266536400,2.3539,1332.7,1331.6,6.47799]
[1610266537603,2.3539,1332.7,1331.8,4.00959]
[1610266539503,4.00959,1331.9,1331.8,4.00959]